Workbook

Sheet Planilha Orçamentária
A1: Ministério da Integração e do Desenvolvimento Regional
A2: Companhia de desenvolvimento dos Vales do São Francisco e do Parnaíba
A4: PLANILHA ORÇAMENTÁRIA - ORÇAMENTO NÃO DESONERADO
A5: CONTRATO: | J5: Bancos de dados:
A6: PROJETO: | B6: CADERNOS DE CARACTERIZAÇÃO GEOGRÁFICA DOS ESTADOS E DISTRITO FEDERAL NA ÁREA DE ATUAÇÃO DA CODEVASF – NA SEDE DA COMPANHIA EM BRASÍLIA - DF | J6: Tabela Eng Consultiva DNIT
E7: Encargos sociais - Horistas: | I7: ='Encargos Sociais'!E46 -> 1.1014 | J7: 2024-01-01
A8: DATA BASE: | B8: 2024-07-01 | E8: Encargos sociais - Mensalista: | I8: ='Encargos Sociais'!F46 -> 0.7004 | J8: -
A9: ITEM | B9: REFERÊNCIA | D9: DESCRIÇÃO | E9: UNID. | F9: QUANT. | G9: CUSTO UNITÁRIO | H9: FatorK | I9: PREÇO UNITÁRIO | J9: PREÇO TOTAL | K9: TIPO de BDI | L9: CLASSIF | M9: Encargos Comp e Adicionais
B10: FONTE | C10: CÓDIGO
A11: 1 | D11: Mão de Obra | J11: =SUM(J12:J19) -> 1946058.01 | L11: ss
A12: 1.1 | B12: DNIT | C12: P8185 | D12: Coordenador Geral – jornada 40 hrs | E12: mês | F12: 29 | G12: 9831.81 | H12: ='Fator Ka'!D35 -> 2.131154824 | I12: =ROUND(H12*G12,2) -> 20953.11 | J12: =ROUND(F12*I12,2) -> 607640.19 | K12: serv | L12: s | M12: =VLOOKUP(C12,MDO_DNIT!B4:AA126,26,0) -> 1030.5
A13: 1.2 | B13: DNIT | C13: P8184 | D13: Geógrafo pleno – jornada 40 hrs | E13: mês | F13: 28 | G13: 5123.87 | H13: ='Fator Ka'!D35 -> 2.131154824 | I13: 10919.76 | J13: 305753.28 | K13: serv | L13: s | M13: =VLOOKUP(C13,MDO_DNIT!B5:AA127,26,0) -> 1030.5
A14: 1.3 | B14: DNIT | C14: P8184 | D14: Geógrafo pleno – jornada 40 hrs | E14: mês | F14: 29 | G14: 5123.87 | H14: ='Fator Ka'!D35 -> 2.131154824 | I14: 10919.76 | J14: 316673.04 | K14: serv | L14: s | M14: =VLOOKUP(C14,MDO_DNIT!B6:AA128,26,0) -> 1030.5
A15: 1.4 | B15: DNIT | C15: P8184 | D15: Analista Geo – jornada 40 hrs | E15: mês | F15: 26 | G15: 5123.87 | H15: ='Fator Ka'!D35 -> 2.131154824 | I15: 10919.76 | J15: 283913.76 | K15: serv | L15: s | M15: =VLOOKUP(C15,MDO_DNIT!B7:AA129,26,0) -> 1030.5
A16: 1.5 | B16: DNIT | C16: P8168 | D16: Bibliotecário – jornada 40 hrs | E16: mês | F16: 19 | G16: 3170.69 | H16: ='Fator Ka'!D35 -> 2.131154824 | I16: 6757.23 | J16: 128387.37 | K16: serv | L16: s | M16: =VLOOKUP(C16,MDO_DNIT!B8:AA130,26,0) -> 1034.3
A17: 1.6 | B17: DNIT | C17: P8135 | D17: Revisor de texto – jornada 40 hrs | E17: mês | F17: 19 | G17: 2604.78 | H17: ='Fator Ka'!D35 -> 2.131154824 | I17: 5551.19 | J17: 105472.61 | K17: serv | L17: s | M17: =VLOOKUP(C17,MDO_DNIT!B9:AA131,26,0) -> 1068.62
A18: 1.7 | B18: DNIT | C18: P8159 | D18: Designer gráfico – jornada 40 hrs | E18: mês | F18: 16 | G18: 4761.5 | H18: ='Fator Ka'!D35 -> 2.131154824 | I18: 10147.49 | J18: 162359.84 | K18: serv | L18: s | M18: =VLOOKUP(C18,MDO_DNIT!B10:AA132,26,0) -> 1005.88
A19: 1.8* | B19: DNIT | D19: Encargos Comp. e Adicionais | E19: mês | F19: 29 | G19: =AVERAGE(M12:M18) -> 1032.971429 | H19: ='Fator Kc'!E16 -> 1.197009 | I19: 1236.48 | J19: 35857.92 | K19: serv | L19: s
D21: TOTAL sem BDI e Encargos Sociais : | J21: =SUMPRODUCT(F12:F19,G12:G19) -> 926277.8014
D22: BDI e Encargos Sociais: | J22: =J23-J21 -> 1019780.209
D23: TOTAL COM BDI: | J23: =SUM(J12:J19) -> 1946058.01
B25: *Conforme instrução do sr. Gerente de Custos (AG/GCT) foi mantido o item 1.8 que utiliza como referência a planilha do DNIT, entretanto, para este item se manter funcional, foi necessária a manutenção dos códigos de referência, embora não correspondam à formação profissional, buscou-se utilizar códigos com valores próximos ao custo unitário.

Sheet Fator Ka
A1: DETALHAMENTO DOS ENCARGOS SOCIAIS: Ka
A2: NOME DA CONSULTORA:
A4: PROJETO: | C4: CONTRATATANTE:
A5: CADERNOS DE CARACTERIZAÇÃO GEOGRÁFICA DOS ESTADOS E DISTRITO FEDERAL NA ÁREA DE ATUAÇÃO DA CODEVASF – NA SEDE DA COMPANHIA EM BRASÍLIA – DF | C5: CODEVASF (SEDE) | D5: Não Desonerado
A6: Cod. | B6: DESCRIÇÃO | D6: %
A7: A | B7: ENCARGOS SOCIAIS BÁSICOS | D7: =SUM(D8:D16) -> 0.378
A8: A1 | B8: INSS | D8: 0.2
A9: A2 | B9: SESI | D9: 0.015
A10: A3 | B10: SENAI | D10: 0.01
A11: A4 | B11: INCRA | D11: 0.002
A12: A5 | B12: SEBRAE | D12: 0.006
A13: A6 | B13: Salário Educação | D13: 0.025
A14: A7 | B14: Seguro Contra Acidentes de Trabalho | D14: 0.03
A15: A8 | B15: FGTS | D15: 0.08
A16: A9 | B16: SECONCI | D16: 0.01
A17: B | B17: ENCARGOS SOCIAIS QUE RECEBEM INCIDÊNCIA DE "A" | D17: =SUM(D18:D24) -> 0.1624
A18: B3 | B18: Auxílio Enfermidade | D18: 0.0064
A19: B4 | B19: 13º Salário | D19: 0.0833
A20: B5 | B20: Licença Paternidade | D20: 0.0004
A21: B6 | B21: Faltas Justificadas | D21: 0.0056
A22: B8 | B22: Auxílio Acidente de Trabalho | D22: 0.0008
A23: B9 | B23: Férias Gozadas | D23: 0.0656
A24: B10 | B24: Salário Maternidade | D24: 0.0003
A25: C | B25: ENCARGOS SOCIAIS QUE NÃO RECEBEM INCIDÊNCIA DE "A" | D25: =SUM(D26:D30) -> 0.0957
A26: C1 | B26: Aviso Prévio Indenizado | D26: 0.0324
A27: C2 | B27: Aviso Prévio Trabalhado | D27: 0.0008
A28: C3 | B28: Férias Indenizadas | D28: 0.0359
A29: C4 | B29: Depósito Rescisão Sem Justa Causa | D29: 0.0239
A30: C5 | B30: Indenização Adicional | D30: 0.0027
A31: D | B31: REINCIDÊNCIAS | D31: =SUM(D32:D33) -> 0.0643
A32: D1 | B32: Reincidência de "A" sobre "B" | D32: 0.0614
A33: D2 | B33: Reincidência de "A" sobre Aviso Prévio Trabalhado e reincidência do FGTS sobre Aviso Prévio Indenizado | D33: 0.0029
A34: K1 | B34: ENCARGOS SOCIAIS | D34: =D31+D25+D17+D7 -> 0.7004
A35: Ka | B35: TAXA DE RESSARCIMENTO DE DESPESAS E ENCARGOS SOBRE MO1 | D35: =(1+D34+'Fator Kc'!E12)*(1+'Fator Kc'!E11)*(1+'Fator Kc'!E7) -> 2.131154824
A36: OBSERVAÇÃO: CELETISTAS E EQUIVALENTES
A37: 1 - DISCRIMINAR OS ENCARGOS SOCIAIS COM SEUS RESPECTIVOS PERCENTUAIS TOTALIZANDO OS MESMOS.
A38: 2 - APLICAR 0 % TOTAL P/CALCULAR OS E. SOCIAS INCIDENTES NA MÃO-DE-OBRA CELESTISTAS
A39: Ka - Taxa de Ressarcimento de Despesas e Encargos sobre a Mão de Obra CELETISTA (incide apenas no Insumo Código MO1)
A40: Ka = (1+K1+K2)x(1+K3)x(1+K4)

Sheet Fator Kc
A1: DESPESAS FISCAIS E CUSTOS DIVERSOS: Kc
A2: NOME DA CONSULTORA:
A4: PROJETO: | C4: CONTRATANTE:
A5: SERVIÇOS DE APOIO À UNIDADE DE GESTÃO E SEGURANÇA DE BARRAGENS DA CODEVASF – NA SEDE DA COMPANHIA EM BRASÍLIA - DF | C5: CODEVASF (SEDE)
A6: Cod | B6: DESCRIÇÃO1 | D6: % preço2 | E6: % custo4 | F6: Recomendação TCU: Redução de 20% da alíquota do PIS e COFINS
A7: K4 | B7: TAXAS E IMPOSTOS | D7: 0.124 | E7: =SUM(E8:E10) -> 0.1187
A8: K4.1 | B8: ISS | D8: 0.03 | E8: =ROUND((1/(1-$D$7))*D8,4) -> 0.0342
A9: K4.2 | B9: PIS3 | D9: 0.0132 | E9: =ROUND((1/(1-$D$7))*D9,4) -> 0.0151 | F9: (80% de 1,65%)
A10: K4.3 | B10: COFINS3 | D10: 0.0608 | E10: =ROUND((1/(1-$D$7))*D10,4) -> 0.0694 | F10: (80% de 7,60%)
A11: K3 | B11: REMUNERAÇÃO DA EMPRESA (LUCRO) | E11: 0.07
A12: K2 | B12: CUSTOS DA ADMINISTRAÇÃO CENTRAL | E12: =SUM(E13:E15) -> 0.08
A13: K2.1 | B13: Custos da administração central da empresa (diretoria, pessoal técnico de apoio e pessoal administrativo não diretamente vinculado à prestação dos serviços) | E13: 0.04
A14: K2.2 | B14: Outras despesas que afetam o custo de produção como treinamento, biblioteca, programa de qualidade, programa de benefícios, auditoria interna e externa | E14: 0.02
A15: K2.3 | B15: Despesas fixas e variaveis com patrimônio, aluguéis, comunicação, manutenção e transporte não diretamente relacionados com o custo direto dos serviços | E15: 0.02
A16: Kc | B16: TAXA RESSARCIMENTO DE DESPESAS SOBRE CUSTOS DIVERSOS | E16: =(1+E11)*(1+E7) -> 1.197009
A17: Observação:
A18: 1 - RELACIONAR OS CUSTOS DE ADMINISTRAÇÃO COM RESPECTIVOS PERCENTUAIS INCIDENTES NA MÃO -DE-OBRA
A19: 1 - DISCRIMINAR OS TRIBUTOS QUE INCIDEM SOBRE OS CUSTOS DA PRESTAÇÃO DOS SERVIÇOS
A20: 2 - K4 = INDICAR % DE CADA TRIBUTO E A SOMA DOS MESMOS
A21: 3 - PIS e COFINS, Regime de Incidencia Acumulativa (0,65% e 3,00% - sem percentual de desconto) ou em Regime de Incidencia Não Acumulativa (1,65% e 7,60% - aplicável percentual de desconto) de acordo com a forma de apuração do lucro no IRPJ. APRESENTAR COMPROVANTES de aproveitamento de créditos tributários dos últimos 12 meses em caso de aplicação de "percentual de desconto".
A22: 4 - AS DESPESAS FISCAIS (K4) INCIDEM SOBRE O TOTAL DA FATURA E NÃO SOBRE OS CUSTOS INCORRIDOS, DEVENDO SER CALCULADO O K4' AP
A23: K4' = { [ 1 / ( 1 - K4) ] - 1 } x 100
A24: K4' = { [ 1 / ( 1 - 0,124 ) ] - 1 } x 100
A25: Kc - Taxa de Ressarcimento de Despesas sobre Custos Diversos
A26: Kc = (1 + K3) x (1 + K4)
A27: K2 - Incide sobre o Custo Total (CT) da Mão de Obra (MO* = MO1 + MO2)
A28: K3 - Incide sobre o Custo Total (CT) Mão de Obra com encargos (MO1 x Ka ou MO2 x Kb), demais Custos e Custos da Administração Central (K2)
A29: K4 - Incide sobre o Custo Total (CT) Mão de Obra com encargos (MO1 x Ka ou MO2 x Kb), demais Custos, e Custos da Administração Central (K2) e Lucro (K3)

Sheet Encargos Sociais
A1: Ministério da Integração e do Desenvolvimento Regional
A2: Companhia de Desenvolvimento dos Vales do São Francisco e do Parnaíba
A3: ='Planilha Orçamentária'!A3:J3 -> 0
A4: COMPOSIÇÃO DE ENCARGOS SOCIAIS SOBRE A MÃO DE OBRA
A5: CONTRATO: | B5: ='Planilha Orçamentária'!B5:D5 -> 0
A6: PROJETO: | B6: ='Planilha Orçamentária'!B6 -> CADERNOS DE CARACTERIZAÇÃO GEOGRÁFICA DOS ESTADOS E DISTRITO FEDERAL NA ÁREA DE ATUAÇÃO DA CODEVASF – NA SEDE DA COMPANHIA EM BRASÍLIA - DF
A7: DATA BASE: | B7: ='Planilha Orçamentária'!B8:C8 -> 2024-07-01
A8: Encargos Sociais – Distrito Federal VIGÊNCIA A PARTIR DE 12/2023
A9: ENCARGOS SOCIAIS SOBRE A MÃO DE OBRA
A10: CÓDIGO | B10: DESCRIÇÃO | C10: COM DESONERAÇÃO | E10: SEM DESONERAÇÃO
C11: HORISTA % | D11: MENSALISTA % | E11: HORISTA % | F11: MENSALISTA %
A12: GRUPO A
A13: A1 | B13: INSS | C13: 0 | D13: 0 | E13: 0.2 | F13: 0.2
A14: A2 | B14: SESI | C14: 0.015 | D14: 0.015 | E14: 0.015 | F14: 0.015
A15: A3 | B15: SENAI | C15: 0.01 | D15: 0.01 | E15: 0.01 | F15: 0.01
A16: A4 | B16: INCRA | C16: 0.002 | D16: 0.002 | E16: 0.002 | F16: 0.002
A17: A5 | B17: SEBRAE | C17: 0.006 | D17: 0.006 | E17: 0.006 | F17: 0.006
A18: A6 | B18: Salário Educação | C18: 0.025 | D18: 0.025 | E18: 0.025 | F18: 0.025
A19: A7 | B19: Seguro Contra Acidentes de Trabalho | C19: 0.03 | D19: 0.03 | E19: 0.03 | F19: 0.03
A20: A8 | B20: FGTS | C20: 0.08 | D20: 0.08 | E20: 0.08 | F20: 0.08
A21: A9 | B21: SECONCI | C21: 0.01 | D21: 0.01 | E21: 0.01 | F21: 0.01
A22: A | B22: Total | C22: =SUM(C13:C21) -> 0.178 | D22: =SUM(D13:D21) -> 0.178 | E22: =SUM(E13:E21) -> 0.378 | F22: =SUM(F13:F21) -> 0.378
A23: GRUPO B
A24: B1 | B24: Repouso Semanal Remunerado | C24: 0.1773 | D24: Não incide | E24: 0.1773 | F24: Não incide
A25: B2 | B25: Feriados | C25: 0.034 | D25: Não incide | E25: 0.034 | F25: Não incide
A26: B3 | B26: Auxílio - Enfermidade | C26: 0.0083 | D26: 0.0064 | E26: 0.0083 | F26: 0.0064
A27: B4 | B27: 13º Salário | C27: 0.1072 | D27: 0.0833 | E27: 0.1072 | F27: 0.0833
A28: B5 | B28: Licença Paternidade | C28: 0.0006 | D28: 0.0004 | E28: 0.0006 | F28: 0.0004
A29: B6 | B29: Faltas Justificadas | C29: 0.0071 | D29: 0.0056 | E29: 0.0071 | F29: 0.0056
A30: B7 | B30: Dias de Chuvas | C30: 0.0127 | D30: Não incide | E30: 0.0127 | F30: Não incide
A31: B8 | B31: Auxílio Acidente de Trabalho | C31: 0.001 | D31: 0.0008 | E31: 0.001 | F31: 0.0008
A32: B9 | B32: Férias Gozadas | C32: 0.0844 | D32: 0.0656 | E32: 0.0844 | F32: 0.0656
A33: B10 | B33: Salário Maternidade | C33: 0.0004 | D33: 0.0003 | E33: 0.0004 | F33: 0.0003
A34: B | B34: Total | C34: =SUM(C24:C33) -> 0.433 | D34: =SUM(D24:D33) -> 0.1624 | E34: =SUM(E24:E33) -> 0.433 | F34: =SUM(F24:F33) -> 0.1624
A35: GRUPO C
A36: C1 | B36: Aviso Prévio Indenizado | C36: 0.0416 | D36: 0.0324 | E36: 0.0416 | F36: 0.0324
A37: C2 | B37: Aviso Prévio Trabalhado | C37: 0.001 | D37: 0.0008 | E37: 0.001 | F37: 0.0008
A38: C3 | B38: Férias Indenizadas | C38: 0.0461 | D38: 0.0359 | E38: 0.0461 | F38: 0.0359
A39: C4 | B39: Depósito Rescisão Sem Justa Causa | C39: 0.0308 | D39: 0.0239 | E39: 0.0308 | F39: 0.0239
A40: C5 | B40: Indenização Adicional | C40: 0.0035 | D40: 0.0027 | E40: 0.0035 | F40: 0.0027
A41: C | B41: Total | C41: =SUM(C36:C40) -> 0.123 | D41: =SUM(D36:D40) -> 0.0957 | E41: =SUM(E36:E40) -> 0.123 | F41: =SUM(F36:F40) -> 0.0957
A42: GRUPO D
A43: D1 | B43: Reincidência de Grupo A sobre Grupo B | C43: 0.0771 | D43: 0.0289 | E43: 0.1637 | F43: 0.0614
A44: D2 | B44: Reincidência de Grupo A sobre Aviso Prévio Trabalhado e Reincidência do FGTS sobre Aviso Prévio Indenizado | C44: 0.0035 | D44: 0.0027 | E44: 0.0037 | F44: 0.0029
A45: D | B45: Total | C45: =SUM(C43:C44) -> 0.0806 | D45: =SUM(D43:D44) -> 0.0316 | E45: =SUM(E43:E44) -> 0.1674 | F45: =SUM(F43:F44) -> 0.0643
A46: TOTAL(A+B+C+D) | C46: =C22+C34+C41+C45 -> 0.8146 | D46: =D22+D34+D41+D45 -> 0.4677 | E46: =E22+E34+E41+E45 -> 1.1014 | F46: =F22+F34+F41+F45 -> 0.7004
A47: Fonte: Informação Dias de Chuva – INMET

Sheet Cronograma
A1: Ministério da Integração e do Desenvolvimento Regional
A2: Companhia de Desenvolvimento dos Vales do São Francisco e do Parnaíba
A3: ='[1]Planilha Orçamentária'!A3:I3 -> 0
A4: CRONOGRAMA FÍSICO-FINANCEIRO NÃO DESONERADO
A5: CONTRATO: | B5: ='Planilha Orçamentária'!B5:D5 -> 0
A6: PROJETO: | B6: ='Planilha Orçamentária'!B6 -> CADERNOS DE CARACTERIZAÇÃO GEOGRÁFICA DOS ESTADOS E DISTRITO FEDERAL NA ÁREA DE ATUAÇÃO DA CODEVASF – NA SEDE DA COMPANHIA EM BRASÍLIA - DF
A7: DATA BASE: | B7: ='Planilha Orçamentária'!B8:C8 -> 2024-07-01
A8: ITEM | B8: DESCRIÇÃO | C8: TOTAL | D8: MESES | AJ8: TOTAL
D9: 1 | E9: 2 | F9: 3 | G9: 4 | H9: 5 | I9: 6 | J9: 7 | K9: 8 | L9: 9 | M9: 10 | N9: 11 | O9: 12 | P9: 13 | Q9: 14 | R9: 15 | S9: 16 | T9: 17 | U9: 18 | V9: 19 | W9: 20 | X9: 21 | Y9: 22 | Z9: 23 | AA9: 24 | AB9: 25 | AC9: 26 | AD9: 27 | AE9: 28 | AF9: 29 | AG9: 30 | AH9: 31 | AI9: 32
A10: 1 | B10: ='Planilha Orçamentária'!D11 -> Mão de Obra | C10: ='Planilha Orçamentária'!J11 -> 1946058.01 | D10: =$C10*D11 -> 0 | E10: 121628.6256 | F10: 0 | G10: 121628.6256 | H10: 0 | I10: 121628.6256 | J10: 0 | K10: 121628.6256 | L10: 0 | M10: 121628.6256 | N10: 0 | O10: 121628.6256 | P10: 0 | Q10: 121628.6256 | R10: 0 | S10: 121628.6256 | T10: 0 | U10: 121628.6256 | V10: 0 | W10: 121628.6256 | X10: 0 | Y10: 121628.6256 | Z10: 0 | AA10: 121628.6256 | AB10: 0 | AC10: 121628.6256 | AD10: 0 | AE10: 121628.6256 | AF10: 0 | AG10: 121628.6256 | AH10: 0 | AI10: 121628.6256 | AJ10: =SUM(D10:AI10) -> 1946058.01 | AK10: R$
C11: =C10/C10 -> 1 | D11: =D14 -> 0 | E11: 0.0625 | F11: 0 | G11: 0.0625 | H11: 0 | I11: 0.0625 | J11: 0 | K11: 0.0625 | L11: 0 | M11: 0.0625 | N11: 0 | O11: 0.0625 | P11: 0 | Q11: 0.0625 | R11: 0 | S11: 0.0625 | T11: 0 | U11: 0.0625 | V11: 0 | W11: 0.0625 | X11: 0 | Y11: 0.0625 | Z11: 0 | AA11: 0.0625 | AB11: 0 | AC11: 0.0625 | AD11: 0 | AE11: 0.0625 | AF11: 0 | AG11: 0.0625 | AH11: 0 | AI11: 0.0625 | AJ11: =SUM(D11:AI11) -> 1 | AK11: %
B12: VALOR TOTAL: | C12: =SUMIF($AK$10:$AK$11,"R$",C$10:C$11) -> 1946058.01 | D12: 0 | E12: 121628.6256 | F12: 0 | G12: 121628.6256 | H12: 0 | I12: 121628.6256 | J12: 0 | K12: 121628.6256 | L12: 0 | M12: 121628.6256 | N12: 0 | O12: 121628.6256 | P12: 0 | Q12: 121628.6256 | R12: 0 | S12: 121628.6256 | T12: 0 | U12: 121628.6256 | V12: 0 | W12: 121628.6256 | X12: 0 | Y12: 121628.6256 | Z12: 0 | AA12: 121628.6256 | AB12: 0 | AC12: 121628.6256 | AD12: 0 | AE12: 121628.6256 | AF12: 0 | AG12: 121628.6256 | AH12: 0 | AI12: 121628.6256 | AJ12: 1946058.01
B13: VALOR ACUMULADO: | D13: =D12 -> 0 | E13: =E12+D13 -> 121628.6256 | F13: 121628.6256 | G13: 243257.2513 | H13: 243257.2513 | I13: 364885.8769 | J13: 364885.8769 | K13: 486514.5025 | L13: 486514.5025 | M13: 608143.1281 | N13: 608143.1281 | O13: 729771.7538 | P13: 729771.7538 | Q13: 851400.3794 | R13: 851400.3794 | S13: 973029.005 | T13: 973029.005 | U13: 1094657.631 | V13: 1094657.631 | W13: 1216286.256 | X13: 1216286.256 | Y13: 1337914.882 | Z13: 1337914.882 | AA13: 1459543.508 | AB13: 1459543.508 | AC13: 1581172.133 | AD13: 1581172.133 | AE13: 1702800.759 | AF13: 1702800.759 | AG13: 1824429.384 | AH13: 1824429.384 | AI13: 1946058.01 | AJ13: =SUMIF($AK$10:$AK$11,"R$",AJ$10:AJ$11) -> 1946058.01
B14: FÍSICO PARCIAL: | D14: 0 | E14: 0.0625 | F14: 0 | G14: 0.0625 | H14: 0 | I14: 0.0625 | J14: 0 | K14: 0.0625 | L14: 0 | M14: 0.0625 | N14: 0 | O14: 0.0625 | P14: 0 | Q14: 0.0625 | R14: 0 | S14: 0.0625 | T14: 0 | U14: 0.0625 | V14: 0 | W14: 0.0625 | X14: 0 | Y14: 0.0625 | Z14: 0 | AA14: 0.0625 | AB14: 0 | AC14: 0.0625 | AD14: 0 | AE14: 0.0625 | AF14: 0 | AG14: 0.0625 | AH14: 0 | AI14: 0.0625 | AJ14: =AJ12/$C$12 -> 1
B15: AVANÇO FÍSICO: | D15: =D14 -> 0 | E15: =E14+D15 -> 0.0625 | F15: 0.0625 | G15: 0.125 | H15: 0.125 | I15: 0.1875 | J15: 0.1875 | K15: 0.25 | L15: 0.25 | M15: 0.3125 | N15: 0.3125 | O15: 0.375 | P15: 0.375 | Q15: 0.4375 | R15: 0.4375 | S15: 0.5 | T15: 0.5 | U15: 0.5625 | V15: 0.5625 | W15: 0.625 | X15: 0.625 | Y15: 0.6875 | Z15: 0.6875 | AA15: 0.75 | AB15: 0.75 | AC15: 0.8125 | AD15: 0.8125 | AE15: 0.875 | AF15: 0.875 | AG15: 0.9375 | AH15: 0.9375 | AI15: 1 | AJ15: =AI15 -> 1

Sheet MDO_DNIT
B1: Código | C1: Categoria | D1: Unid. | E1: Salário | F1: Encargos Sociais | H1: Encargos Complementares | R1: Encargos Adicionais | X1: Encargos Totais | Z1: Valor Total | AA1: Encargos Adicionais e Complementares
H2: Alimentação | J2: EPI | L2: Ferramenta | N2: Transporte | P2: Exame Ocupacional | R2: Cesta Básica | T2: Assistência Médica | V2: Seguro de Vida
E3: R$ | F3: % | G3: R$ | H3: % | I3: R$ | J3: % | K3: R$ | L3: % | M3: R$ | N3: % | O3: R$ | P3: % | Q3: R$ | R3: % | S3: R$ | T3: % | U3: R$ | V3: % | W3: R$ | X3: % | Y3: R$ | Z3: R$ | AA3: R$
B4: Profissionais mensalistas | AA4: =Z4-G4-E4 -> 0
B5: P8001 | C5: Advogado júnior | D5: mês | E5: 4530.07 | F5: 0.7929 | G5: 3591.89 | H5: 0.1552 | I5: 702.89 | J5: 0.0055 | K5: 24.99 | L5: 0 | M5: 0 | N5: 0 | O5: 0 | P5: 0.0006 | Q5: 2.83 | R5: 0 | S5: 0 | T5: 0.0639 | U5: 289.39 | V5: 0.0022 | W5: 9.98 | X5: 1.0203 | Y5: 4621.98 | Z5: 9152.05 | AA5: 1030.09
B6: P8002 | C6: Advogado pleno | D6: mês | E6: 6040.1 | F6: 0.7929 | G6: 4789.19 | H6: 0.1164 | I6: 702.89 | J6: 0.0041 | K6: 24.99 | L6: 0 | M6: 0 | N6: 0 | O6: 0 | P6: 0.0005 | Q6: 2.83 | R6: 0 | S6: 0 | T6: 0.0479 | U6: 289.39 | V6: 0.0017 | W6: 9.98 | X6: 0.9634 | Y6: 5819.27 | Z6: 11859.37 | AA6: 1030.08
B7: P8003 | C7: Advogado sênior | D7: mês | E7: 11150.15 | F7: 0.7929 | G7: 8840.95 | H7: 0.063 | I7: 702.89 | J7: 0.0022 | K7: 24.99 | L7: 0 | M7: 0 | N7: 0 | O7: 0 | P7: 0.0003 | Q7: 2.83 | R7: 0 | S7: 0 | T7: 0.026 | U7: 289.39 | V7: 0.0009 | W7: 9.98 | X7: 0.8853 | Y7: 9871.03 | Z7: 21021.18 | AA7: 1030.08
B8: P8007 | C8: Analista de desenvolvimento de sistemas júnior | D8: mês | E8: 4761.5 | F8: 0.796 | G8: 3790.16 | H8: 0.1476 | I8: 702.89 | J8: 0 | K8: 0 | L8: 0 | M8: 0 | N8: 0 | O8: 0 | P8: 0.0008 | Q8: 3.69 | R8: 0 | S8: 0 | T8: 0.0608 | U8: 289.39 | V8: 0.0021 | W8: 9.98 | X8: 1.0073 | Y8: 4796.11 | Z8: 9557.61 | AA8: 1005.95
B9: P8008 | C9: Analista de desenvolvimento de sistemas pleno | D9: mês | E9: 5587.15 | F9: 0.796 | G9: 4447.37 | H9: 0.1258 | I9: 702.89 | J9: 0 | K9: 0 | L9: 0 | M9: 0 | N9: 0 | O9: 0 | P9: 0.0007 | Q9: 3.69 | R9: 0 | S9: 0 | T9: 0.0518 | U9: 289.39 | V9: 0.0018 | W9: 9.98 | X9: 0.976 | Y9: 5453.33 | Z9: 11040.48 | AA9: 1005.96
B10: P8009 | C10: Analista de desenvolvimento de sistemas sênior | D10: mês | E10: 9769.36 | F10: 0.796 | G10: 7776.41 | H10: 0.0719 | I10: 702.89 | J10: 0 | K10: 0 | L10: 0 | M10: 0 | N10: 0 | O10: 0 | P10: 0.0004 | Q10: 3.69 | R10: 0 | S10: 0 | T10: 0.0296 | U10: 289.39 | V10: 0.001 | W10: 9.98 | X10: 0.899 | Y10: 8782.37 | Z10: 18551.73 | AA10: 1005.96
B11: P8013 | C11: Arquiteto júnior | D11: mês | E11: 12002 | F11: 0.7935 | G11: 9523.59 | H11: 0.0586 | I11: 702.89 | J11: 0.0021 | K11: 24.99 | L11: 0 | M11: 0 | N11: 0 | O11: 0 | P11: 0.0002 | Q11: 2.66 | R11: 0 | S11: 0 | T11: 0.0241 | U11: 289.39 | V11: 0.0008 | W11: 9.98 | X11: 0.8793 | Y11: 10553.5 | Z11: 22555.5 | AA11: 1029.91
B12: P8014 | C12: Arquiteto pleno | D12: mês | E12: 12275.9 | F12: 0.7935 | G12: 9740.92 | H12: 0.0573 | I12: 702.89 | J12: 0.002 | K12: 24.99 | L12: 0 | M12: 0 | N12: 0 | O12: 0 | P12: 0.0002 | Q12: 2.66 | R12: 0 | S12: 0 | T12: 0.0236 | U12: 289.39 | V12: 0.0008 | W12: 9.98 | X12: 0.8774 | Y12: 10770.84 | Z12: 23046.73 | AA12: 1029.91
B13: P8015 | C13: Arquiteto sênior | D13: mês | E13: 14951.37 | F13: 0.7935 | G13: 11863.91 | H13: 0.047 | I13: 702.89 | J13: 0.0017 | K13: 24.99 | L13: 0 | M13: 0 | N13: 0 | O13: 0 | P13: 0.0002 | Q13: 2.66 | R13: 0 | S13: 0 | T13: 0.0194 | U13: 289.39 | V13: 0.0007 | W13: 9.98 | X13: 0.8624 | Y13: 12893.82 | Z13: 27845.18 | AA13: 1029.9
B14: P8019 | C14: Assistente social júnior | D14: mês | E14: 3183.32 | F14: 0.802 | G14: 2553.03 | H14: 0.2208 | I14: 702.89 | J14: 0.0078 | K14: 24.99 | L14: 0 | M14: 0 | N14: 0.0088 | O14: 28.03 | P14: 0.0014 | Q14: 4.51 | R14: 0 | S14: 0 | T14: 0.0909 | U14: 289.39 | V14: 0.0031 | W14: 9.98 | X14: 1.1349 | Y14: 3612.82 | Z14: 6796.14 | AA14: 1059.79
B15: P8020 | C15: Assistente social pleno | D15: mês | E15: 4244.43 | F15: 0.802 | G15: 3404.03 | H15: 0.1656 | I15: 702.89 | J15: 0.0059 | K15: 24.99 | L15: 0 | M15: 0 | N15: 0 | O15: 0 | P15: 0.0011 | Q15: 4.51 | R15: 0 | S15: 0 | T15: 0.0682 | U15: 289.39 | V15: 0.0024 | W15: 9.98 | X15: 1.0451 | Y15: 4435.79 | Z15: 8680.23 | AA15: 1031.77
B16: P8021 | C16: Assistente social sênior | D16: mês | E16: 7054.37 | F16: 0.802 | G16: 5657.6 | H16: 0.0996 | I16: 702.89 | J16: 0.0035 | K16: 24.99 | L16: 0 | M16: 0 | N16: 0 | O16: 0 | P16: 0.0006 | Q16: 4.51 | R16: 0 | S16: 0 | T16: 0.041 | U16: 289.39 | V16: 0.0014 | W16: 9.98 | X16: 0.9483 | Y16: 6689.36 | Z16: 13743.73 | AA16: 1031.76
B17: P8025 | C17: Auxiliar | D17: mês | E17: 1554.37 | F17: 0.8147 | G17: 1266.34 | H17: 0.4522 | I17: 702.89 | J17: 0.0196 | K17: 30.42 | L17: 0.001 | M17: 1.56 | N17: 0.0809 | O17: 125.77 | P17: 0.004 | Q17: 6.15 | R17: 0 | S17: 0 | T17: 0.1862 | U17: 289.39 | V17: 0.0064 | W17: 9.98 | X17: 1.5649 | Y17: 2432.51 | Z17: 3986.88 | AA17: 1166.17
B18: P8026 | C18: Auxiliar administrativo | D18: mês | E18: 1842.36 | F18: 0.8018 | G18: 1477.2 | H18: 0.3815 | I18: 702.89 | J18: 0 | K18: 0 | L18: 0 | M18: 0 | N18: 0.0589 | O18: 108.49 | P18: 0.002 | Q18: 3.75 | R18: 0 | S18: 0 | T18: 0.1571 | U18: 289.39 | V18: 0.0054 | W18: 9.98 | X18: 1.4067 | Y18: 2591.71 | Z18: 4434.07 | AA18: 1114.51
B19: P8027 | C19: Auxiliar de laboratório | D19: mês | E19: 1721.24 | F19: 0.8039 | G19: 1383.71 | H19: 0.4084 | I19: 702.89 | J19: 0.0177 | K19: 30.42 | L19: 0.0019 | M19: 3.21 | N19: 0.0673 | O19: 115.76 | P19: 0.0023 | Q19: 4.01 | R19: 0 | S19: 0 | T19: 0.1681 | U19: 289.39 | V19: 0.0058 | W19: 9.98 | X19: 1.4753 | Y19: 2539.37 | Z19: 4260.61 | AA19: 1155.66
B20: P8028 | C20: Auxiliar de topografia | D20: mês | E20: 1554.37 | F20: 0.8067 | G20: 1253.91 | H20: 0.4522 | I20: 702.89 | J20: 0.0196 | K20: 30.42 | L20: 0.0009 | M20: 1.36 | N20: 0.0809 | O20: 125.77 | P20: 0.0028 | Q20: 4.39 | R20: 0 | S20: 0 | T20: 0.1862 | U20: 289.39 | V20: 0.0064 | W20: 9.98 | X20: 1.5557 | Y20: 2418.11 | Z20: 3972.48 | AA20: 1164.2
B21: P8032 | C21: Biólogo júnior | D21: mês | E21: 3234.91 | F21: 0.7971 | G21: 2578.55 | H21: 0.2173 | I21: 702.89 | J21: 0.0077 | K21: 24.99 | L21: 0 | M21: 0 | N21: 0.0077 | O21: 24.94 | P21: 0.0011 | Q21: 3.67 | R21: 0 | S21: 0 | T21: 0.0895 | U21: 289.39 | V21: 0.0031 | W21: 9.98 | X21: 1.1235 | Y21: 3634.41 | Z21: 6869.32 | AA21: 1055.86
B22: P8033 | C22: Biólogo pleno | D22: mês | E22: 4313.22 | F22: 0.7971 | G22: 3438.07 | H22: 0.163 | I22: 702.89 | J22: 0.0058 | K22: 24.99 | L22: 0 | M22: 0 | N22: 0 | O22: 0 | P22: 0.0009 | Q22: 3.67 | R22: 0 | S22: 0 | T22: 0.0671 | U22: 289.39 | V22: 0.0023 | W22: 9.98 | X22: 1.0361 | Y22: 4468.99 | Z22: 8782.21 | AA22: 1030.92
B23: P8034 | C23: Biólogo sênior | D23: mês | E23: 7635.07 | F23: 0.7971 | G23: 6085.92 | H23: 0.0921 | I23: 702.89 | J23: 0.0033 | K23: 24.99 | L23: 0 | M23: 0 | N23: 0 | O23: 0 | P23: 0.0005 | Q23: 3.67 | R23: 0 | S23: 0 | T23: 0.0379 | U23: 289.39 | V23: 0.0013 | W23: 9.98 | X23: 0.9321 | Y23: 7116.84 | Z23: 14751.92 | AA23: 1030.93
B24: P8038 | C24: Chefe de escritório | D24: mês | E24: 3358.49 | F24: 0.794 | G24: 2666.64 | H24: 0.2093 | I24: 702.89 | J24: 0 | K24: 0 | L24: 0 | M24: 0 | N24: 0.0052 | O24: 17.52 | P24: 0.0009 | Q24: 3.01 | R24: 0 | S24: 0 | T24: 0.0862 | U24: 289.39 | V24: 0.003 | W24: 9.98 | X24: 1.0985 | Y24: 3689.44 | Z24: 7047.93 | AA24: 1022.8
B25: P8040 | C25: Contador júnior | D25: mês | E25: 4154.33 | F25: 0.7932 | G25: 3295.22 | H25: 0.1692 | I25: 702.89 | J25: 0 | K25: 0 | L25: 0 | M25: 0 | N25: 0 | O25: 0 | P25: 0.0006 | Q25: 2.57 | R25: 0 | S25: 0 | T25: 0.0697 | U25: 289.39 | V25: 0.0024 | W25: 9.98 | X25: 1.0351 | Y25: 4300.05 | Z25: 8454.38 | AA25: 1004.83
B26: P8041 | C26: Contador pleno | D26: mês | E26: 5539.11 | F26: 0.7932 | G26: 4393.62 | H26: 0.1269 | I26: 702.89 | J26: 0 | K26: 0 | L26: 0 | M26: 0 | N26: 0 | O26: 0 | P26: 0.0005 | Q26: 2.57 | R26: 0 | S26: 0 | T26: 0.0522 | U26: 289.39 | V26: 0.0018 | W26: 9.98 | X26: 0.9746 | Y26: 5398.45 | Z26: 10937.56 | AA26: 1004.83
B27: P8042 | C27: Contador sênior | D27: mês | E27: 10620.57 | F27: 0.7932 | G27: 8424.24 | H27: 0.0662 | I27: 702.89 | J27: 0 | K27: 0 | L27: 0 | M27: 0 | N27: 0 | O27: 0 | P27: 0.0002 | Q27: 2.57 | R27: 0 | S27: 0 | T27: 0.0272 | U27: 289.39 | V27: 0.0009 | W27: 9.98 | X27: 0.8878 | Y27: 9429.07 | Z27: 20049.64 | AA27: 1004.83
B28: P8044 | C28: Coordenador ambiental | D28: mês | E28: 18522.37 | F28: 0.7958 | G28: 14740.1 | H28: 0.0379 | I28: 702.89 | J28: 0.0012 | K28: 22.82 | L28: 0 | M28: 0 | N28: 0 | O28: 0 | P28: 0.0002 | Q28: 3.19 | R28: 0 | S28: 0 | T28: 0.0156 | U28: 289.39 | V28: 0.0005 | W28: 9.98 | X28: 0.8513 | Y28: 15768.37 | Z28: 34290.74 | AA28: 1028.27
B29: P8045 | C29: Economista júnior | D29: mês | E29: 4742.07 | F29: 0.7861 | G29: 3727.74 | H29: 0.1482 | I29: 702.89 | J29: 0 | K29: 0 | L29: 0 | M29: 0 | N29: 0 | O29: 0 | P29: 0.0004 | Q29: 1.82 | R29: 0 | S29: 0 | T29: 0.061 | U29: 289.39 | V29: 0.0021 | W29: 9.98 | X29: 0.9978 | Y29: 4731.83 | Z29: 9473.9 | AA29: 1004.09
B30: P8046 | C30: Economista pleno | D30: mês | E30: 6322.76 | F30: 0.7861 | G30: 4970.32 | H30: 0.1112 | I30: 702.89 | J30: 0 | K30: 0 | L30: 0 | M30: 0 | N30: 0 | O30: 0 | P30: 0.0003 | Q30: 1.82 | R30: 0 | S30: 0 | T30: 0.0458 | U30: 289.39 | V30: 0.0016 | W30: 9.98 | X30: 0.9449 | Y30: 5974.41 | Z30: 12297.17 | AA30: 1004.09
B31: P8047 | C31: Economista sênior | D31: mês | E31: 10619.55 | F31: 0.7861 | G31: 8348.03 | H31: 0.0662 | I31: 702.89 | J31: 0 | K31: 0 | L31: 0 | M31: 0 | N31: 0 | O31: 0 | P31: 0.0002 | Q31: 1.82 | R31: 0 | S31: 0 | T31: 0.0273 | U31: 289.39 | V31: 0.0009 | W31: 9.98 | X31: 0.8807 | Y31: 9352.11 | Z31: 19971.67 | AA31: 1004.09
B32: P8054 | C32: Engenheiro agrônomo júnior | D32: mês | E32: 12002 | F32: 0.7901 | G32: 9482.78 | H32: 0.0586 | I32: 702.89 | J32: 0.0021 | K32: 24.99 | L32: 0 | M32: 0 | N32: 0 | O32: 0 | P32: 0.0002 | Q32: 2.44 | R32: 0 | S32: 0 | T32: 0.0241 | U32: 289.39 | V32: 0.0008 | W32: 9.98 | X32: 0.8759 | Y32: 10512.47 | Z32: 22514.47 | AA32: 1029.69
B33: P8055 | C33: Engenheiro agrônomo pleno | D33: mês | E33: 12137.3 | F33: 0.7901 | G33: 9589.68 | H33: 0.0579 | I33: 702.89 | J33: 0.0021 | K33: 24.99 | L33: 0 | M33: 0 | N33: 0 | O33: 0 | P33: 0.0002 | Q33: 2.44 | R33: 0 | S33: 0 | T33: 0.0238 | U33: 289.39 | V33: 0.0008 | W33: 9.98 | X33: 0.8749 | Y33: 10619.38 | Z33: 22756.68 | AA33: 1029.7
B34: P8056 | C34: Engenheiro agrônomo sênior | D34: mês | E34: 13689.19 | F34: 0.7901 | G34: 10815.83 | H34: 0.0513 | I34: 702.89 | J34: 0.0018 | K34: 24.99 | L34: 0 | M34: 0 | N34: 0 | O34: 0 | P34: 0.0002 | Q34: 2.44 | R34: 0 | S34: 0 | T34: 0.0211 | U34: 289.39 | V34: 0.0007 | W34: 9.98 | X34: 0.8653 | Y34: 11845.52 | Z34: 25534.71 | AA34: 1029.69
B35: P8057 | C35: Engenheiro ambiental júnior | D35: mês | E35: 12002 | F35: 0.7969 | G35: 9564.39 | H35: 0.0586 | I35: 702.89 | J35: 0.0021 | K35: 24.99 | L35: 0 | M35: 0 | N35: 0 | O35: 0 | P35: 0.0003 | Q35: 3.6 | R35: 0 | S35: 0 | T35: 0.0241 | U35: 289.39 | V35: 0.0008 | W35: 9.98 | X35: 0.8828 | Y35: 10595.25 | Z35: 22597.25 | AA35: 1030.86
B36: P8058 | C36: Engenheiro ambiental pleno | D36: mês | E36: 13319.39 | F36: 0.7969 | G36: 10614.22 | H36: 0.0528 | I36: 702.89 | J36: 0.0019 | K36: 24.99 | L36: 0 | M36: 0 | N36: 0 | O36: 0 | P36: 0.0003 | Q36: 3.6 | R36: 0 | S36: 0 | T36: 0.0217 | U36: 289.39 | V36: 0.0007 | W36: 9.98 | X36: 0.8743 | Y36: 11645.07 | Z36: 24964.47 | AA36: =Z36-G36-E36 -> 1030.86
B37: P8059 | C37: Engenheiro ambiental sênior | D37: mês | E37: 14636.78 | F37: 0.7969 | G37: 11664.05 | H37: 0.048 | I37: 702.89 | J37: 0.0017 | K37: 24.99 | L37: 0 | M37: 0 | N37: 0 | O37: 0 | P37: 0.0002 | Q37: 3.6 | R37: 0 | S37: 0 | T37: 0.0198 | U37: 289.39 | V37: 0.0007 | W37: 9.98 | X37: 0.8673 | Y37: 12694.9 | Z37: 27331.69 | AA37: 1030.86
B38: P8060 | C38: Engenheiro consultor especial | D38: mês | E38: 21440.03 | F38: 0.797 | G38: 17087.71 | H38: 0.0328 | I38: 702.89 | J38: 0.0011 | K38: 22.82 | L38: 0 | M38: 0 | N38: 0 | O38: 0 | P38: 0.0002 | Q38: 3.98 | R38: 0 | S38: 0 | T38: 0.0135 | U38: 289.39 | V38: 0.0005 | W38: 9.98 | X38: 0.845 | Y38: 18116.77 | Z38: 39556.8 | AA38: 1029.06
B39: P8061 | C39: Engenheiro coordenador | D39: mês | E39: 17866.69 | F39: 0.797 | G39: 14239.76 | H39: 0.0393 | I39: 702.89 | J39: 0.0013 | K39: 22.82 | L39: 0 | M39: 0 | N39: 0 | O39: 0 | P39: 0.0002 | Q39: 3.98 | R39: 0 | S39: 0 | T39: 0.0162 | U39: 289.39 | V39: 0.0006 | W39: 9.98 | X39: 0.8546 | Y39: 15268.82 | Z39: 33135.51 | AA39: 1029.06
B40: P8062 | C40: Engenheiro de pesca júnior | D40: mês | E40: 12002 | F40: 0.8029 | G40: 9636.41 | H40: 0.0586 | I40: 702.89 | J40: 0.0021 | K40: 24.99 | L40: 0 | M40: 0 | N40: 0 | O40: 0 | P40: 0.0004 | Q40: 4.39 | R40: 0 | S40: 0 | T40: 0.0241 | U40: 289.39 | V40: 0.0008 | W40: 9.98 | X40: 0.8889 | Y40: 10668.05 | Z40: 22670.05 | AA40: 1031.64
B41: P8063 | C41: Engenheiro de pesca pleno | D41: mês | E41: 12623.69 | F41: 0.8029 | G41: 10135.56 | H41: 0.0557 | I41: 702.89 | J41: 0.002 | K41: 24.99 | L41: 0 | M41: 0 | N41: 0 | O41: 0 | P41: 0.0003 | Q41: 4.39 | R41: 0 | S41: 0 | T41: 0.0229 | U41: 289.39 | V41: 0.0008 | W41: 9.98 | X41: 0.8846 | Y41: 11167.2 | Z41: 23790.89 | AA41: 1031.64
B42: P8064 | C42: Engenheiro de pesca sênior | D42: mês | E42: 16283.3 | F42: 0.8029 | G42: 13073.86 | H42: 0.0432 | I42: 702.89 | J42: 0.0015 | K42: 24.99 | L42: 0 | M42: 0 | N42: 0 | O42: 0 | P42: 0.0003 | Q42: 4.39 | R42: 0 | S42: 0 | T42: 0.0178 | U42: 289.39 | V42: 0.0006 | W42: 9.98 | X42: 0.8663 | Y42: 14105.5 | Z42: 30388.8 | AA42: 1031.64
B43: P8065 | C43: Engenheiro de projetos júnior | D43: mês | E43: 12002 | F43: 0.797 | G43: 9565.59 | H43: 0.0586 | I43: 702.89 | J43: 0.0021 | K43: 24.99 | L43: 0 | M43: 0 | N43: 0 | O43: 0 | P43: 0.0003 | Q43: 3.98 | R43: 0 | S43: 0 | T43: 0.0241 | U43: 289.39 | V43: 0.0008 | W43: 9.98 | X43: 0.8829 | Y43: 10596.82 | Z43: 22598.82 | AA43: 1031.23
B44: P8066 | C44: Engenheiro de projetos pleno | D44: mês | E44: 12379.96 | F44: 0.797 | G44: 9866.83 | H44: 0.0568 | I44: 702.89 | J44: 0.002 | K44: 24.99 | L44: 0 | M44: 0 | N44: 0 | O44: 0 | P44: 0.0003 | Q44: 3.98 | R44: 0 | S44: 0 | T44: 0.0234 | U44: 289.39 | V44: 0.0008 | W44: 9.98 | X44: 0.8803 | Y44: 10898.06 | Z44: 23278.02 | AA44: 1031.23
B45: P8067 | C45: Engenheiro de projetos sênior | D45: mês | E45: 15564.54 | F45: 0.797 | G45: 12404.93 | H45: 0.0452 | I45: 702.89 | J45: 0.0016 | K45: 24.99 | L45: 0 | M45: 0 | N45: 0 | O45: 0 | P45: 0.0003 | Q45: 3.98 | R45: 0 | S45: 0 | T45: 0.0186 | U45: 289.39 | V45: 0.0006 | W45: 9.98 | X45: 0.8633 | Y45: 13436.16 | Z45: 29000.7 | AA45: 1031.23
B46: P8068 | C46: Engenheiro florestal júnior | D46: mês | E46: 12002 | F46: 0.8029 | G46: 9636.41 | H46: 0.0586 | I46: 702.89 | J46: 0.0021 | K46: 24.99 | L46: 0 | M46: 0 | N46: 0 | O46: 0 | P46: 0.0004 | Q46: 4.39 | R46: 0 | S46: 0 | T46: 0.0241 | U46: 289.39 | V46: 0.0008 | W46: 9.98 | X46: 0.8889 | Y46: 10668.05 | Z46: 22670.05 | AA46: 1031.64
B47: P8069 | C47: Engenheiro florestal pleno | D47: mês | E47: 12623.69 | F47: 0.8029 | G47: 10135.56 | H47: 0.0557 | I47: 702.89 | J47: 0.002 | K47: 24.99 | L47: 0 | M47: 0 | N47: 0 | O47: 0 | P47: 0.0003 | Q47: 4.39 | R47: 0 | S47: 0 | T47: 0.0229 | U47: 289.39 | V47: 0.0008 | W47: 9.98 | X47: 0.8846 | Y47: 11167.2 | Z47: 23790.89 | AA47: 1031.64
B48: P8070 | C48: Engenheiro florestal sênior | D48: mês | E48: 16283.3 | F48: 0.8029 | G48: 13073.86 | H48: 0.0432 | I48: 702.89 | J48: 0.0015 | K48: 24.99 | L48: 0 | M48: 0 | N48: 0 | O48: 0 | P48: 0.0003 | Q48: 4.39 | R48: 0 | S48: 0 | T48: 0.0178 | U48: 289.39 | V48: 0.0006 | W48: 9.98 | X48: 0.8663 | Y48: 14105.5 | Z48: 30388.8 | AA48: 1031.64
B49: P8080 | C49: Geólogo júnior | D49: mês | E49: 10004.5 | F49: 0.8014 | G49: 8017.61 | H49: 0.0703 | I49: 702.89 | J49: 0.0025 | K49: 24.99 | L49: 0 | M49: 0 | N49: 0 | O49: 0 | P49: 0.0003 | Q49: 3.44 | R49: 0 | S49: 0 | T49: 0.0289 | U49: 289.39 | V49: 0.001 | W49: 9.98 | X49: 0.9044 | Y49: 9048.3 | Z49: 19052.8 | AA49: 1030.69
B50: P8081 | C50: Geólogo pleno | D50: mês | E50: 11840.54 | F50: 0.8014 | G50: 9489.01 | H50: 0.0594 | I50: 702.89 | J50: 0.0021 | K50: 24.99 | L50: 0 | M50: 0 | N50: 0 | O50: 0 | P50: 0.0003 | Q50: 3.44 | R50: 0 | S50: 0 | T50: 0.0244 | U50: 289.39 | V50: 0.0008 | W50: 9.98 | X50: 0.8884 | Y50: 10519.7 | Z50: 22360.25 | AA50: 1030.7
B51: P8082 | C51: Geólogo sênior | D51: mês | E51: 13676.59 | F51: 0.8014 | G51: 10960.42 | H51: 0.0514 | I51: 702.89 | J51: 0.0018 | K51: 24.99 | L51: 0 | M51: 0 | N51: 0 | O51: 0 | P51: 0.0003 | Q51: 3.44 | R51: 0 | S51: 0 | T51: 0.0212 | U51: 289.39 | V51: 0.0007 | W51: 9.98 | X51: 0.8768 | Y51: 11991.11 | Z51: 25667.7 | AA51: 1030.69
B52: P8092 | C52: Jornalista júnior | D52: mês | E52: 3004.28 | F52: 0.7958 | G52: 2390.81 | H52: 0.234 | I52: 702.89 | J52: 0.0083 | K52: 24.99 | L52: 0 | M52: 0 | N52: 0.0129 | O52: 38.78 | P52: 0.0009 | Q52: 2.74 | R52: 0 | S52: 0 | T52: 0.0963 | U52: 289.39 | V52: 0.0033 | W52: 9.98 | X52: 1.1515 | Y52: 3459.58 | Z52: 6463.86 | AA52: 1068.77
B53: P8093 | C53: Jornalista pleno | D53: mês | E53: 4005.71 | F53: 0.7958 | G53: 3187.74 | H53: 0.1755 | I53: 702.89 | J53: 0.0062 | K53: 24.99 | L53: 0 | M53: 0 | N53: 0 | O53: 0 | P53: 0.0007 | Q53: 2.74 | R53: 0 | S53: 0 | T53: 0.0722 | U53: 289.39 | V53: 0.0025 | W53: 9.98 | X53: 1.0529 | Y53: 4217.74 | Z53: 8223.45 | AA53: 1030
B54: P8094 | C54: Jornalista sênior | D54: mês | E54: 7743.99 | F54: 0.7958 | G54: 6162.67 | H54: 0.0908 | I54: 702.89 | J54: 0.0032 | K54: 24.99 | L54: 0 | M54: 0 | N54: 0 | O54: 0 | P54: 0.0004 | Q54: 2.74 | R54: 0 | S54: 0 | T54: 0.0374 | U54: 289.39 | V54: 0.0013 | W54: 9.98 | X54: 0.9288 | Y54: 7192.67 | Z54: 14936.66 | AA54: 1030
B55: P8098 | C55: Laboratorista | D55: mês | E55: 2294.99 | F55: 0.8039 | G55: 1844.94 | H55: 0.3063 | I55: 702.89 | J55: 0.0122 | K55: 28.01 | L55: 0 | M55: 0 | N55: 0.0354 | O55: 81.33 | P55: 0.0017 | Q55: 4.01 | R55: 0 | S55: 0 | T55: 0.1261 | U55: 289.39 | V55: 0.0043 | W55: 9.98 | X55: 1.29 | Y55: 2960.56 | Z55: 5255.55 | AA55: 1115.62
B56: P8102 | C56: Médico veterinário | D56: mês | E56: 12002 | F56: 0.7913 | G56: 9497.18 | H56: 0.0586 | I56: 702.89 | J56: 0.0021 | K56: 24.99 | L56: 0 | M56: 0 | N56: 0 | O56: 0 | P56: 0.0002 | Q56: 2.21 | R56: 0 | S56: 0 | T56: 0.0241 | U56: 289.39 | V56: 0.0008 | W56: 9.98 | X56: 0.8771 | Y56: 10526.65 | Z56: 22528.65 | AA56: 1029.47
B57: P8106 | C57: Meteorologista júnior | D57: mês | E57: 5290.59 | F57: 0.7922 | G57: 4191.21 | H57: 0.1329 | I57: 702.89 | J57: 0.0047 | K57: 24.99 | L57: 0 | M57: 0 | N57: 0 | O57: 0 | P57: 0.0005 | Q57: 2.47 | R57: 0 | S57: 0 | T57: 0.0547 | U57: 289.39 | V57: 0.0019 | W57: 9.98 | X57: 0.9868 | Y57: 5220.92 | Z57: 10511.51 | AA57: 1029.71
B58: P8107 | C58: Meteorologista pleno | D58: mês | E58: 7054.12 | F58: 0.7922 | G58: 5588.27 | H58: 0.0996 | I58: 702.89 | J58: 0.0035 | K58: 24.99 | L58: 0 | M58: 0 | N58: 0 | O58: 0 | P58: 0.0003 | Q58: 2.47 | R58: 0 | S58: 0 | T58: 0.041 | U58: 289.39 | V58: 0.0014 | W58: 9.98 | X58: 0.9382 | Y58: 6617.99 | Z58: 13672.11 | AA58: 1029.72
B59: P8108 | C59: Meteorologista sênior | D59: mês | E59: 11877.06 | F59: 0.7922 | G59: 9409 | H59: 0.0592 | I59: 702.89 | J59: 0.0021 | K59: 24.99 | L59: 0 | M59: 0 | N59: 0 | O59: 0 | P59: 0.0002 | Q59: 2.47 | R59: 0 | S59: 0 | T59: 0.0244 | U59: 289.39 | V59: 0.0008 | W59: 9.98 | X59: 0.8789 | Y59: 10438.72 | Z59: 22315.78 | AA59: 1029.72
B60: P8112 | C60: Motorista de caminhão | D60: mês | E60: 2285.67 | F60: 0.8062 | G60: 1842.71 | H60: 0.3075 | I60: 702.89 | J60: 0.0133 | K60: 30.42 | L60: 0 | M60: 0 | N60: 0.0358 | O60: 81.89 | P60: 0.0019 | Q60: 4.27 | R60: 0 | S60: 0 | T60: 0.1266 | U60: 289.39 | V60: 0.0044 | W60: 9.98 | X60: 1.2957 | Y60: 2961.55 | Z60: 5247.22 | AA60: 1118.84
B61: P8113 | C61: Motorista de veículo leve | D61: mês | E61: 2024.72 | F61: 0.802 | G61: 1623.83 | H61: 0.3472 | I61: 702.89 | J61: 0.015 | K61: 30.42 | L61: 0 | M61: 0 | N61: 0.0482 | O61: 97.55 | P61: 0.0019 | Q61: 3.86 | R61: 0 | S61: 0 | T61: 0.1429 | U61: 289.39 | V61: 0.0049 | W61: 9.98 | X61: 1.3621 | Y61: 2757.92 | Z61: 4782.64 | AA61: 1134.09
B62: P8117 | C62: Oceanógrafo júnior | D62: mês | E62: 4943.07 | F62: 0.8026 | G62: 3967.31 | H62: 0.1422 | I62: 702.89 | J62: 0.0051 | K62: 24.99 | L62: 0 | M62: 0 | N62: 0 | O62: 0 | P62: 0.0008 | Q62: 4.07 | R62: 0 | S62: 0 | T62: 0.0585 | U62: 289.39 | V62: 0.002 | W62: 9.98 | X62: 1.0112 | Y62: 4998.63 | Z62: 9941.7 | AA62: 1031.32
B63: P8118 | C63: Oceanógrafo pleno | D63: mês | E63: 6590.76 | F63: 0.8026 | G63: 5289.75 | H63: 0.1066 | I63: 702.89 | J63: 0.0038 | K63: 24.99 | L63: 0 | M63: 0 | N63: 0 | O63: 0 | P63: 0.0006 | Q63: 4.07 | R63: 0 | S63: 0 | T63: 0.0439 | U63: 289.39 | V63: 0.0015 | W63: 9.98 | X63: 0.9591 | Y63: 6321.07 | Z63: 12911.83 | AA63: 1031.32
B64: P8119 | C64: Oceanógrafo sênior | D64: mês | E64: 12409.57 | F64: 0.8026 | G64: 9959.92 | H64: 0.0566 | I64: 702.89 | J64: 0.002 | K64: 24.99 | L64: 0 | M64: 0 | N64: 0 | O64: 0 | P64: 0.0003 | Q64: 4.07 | R64: 0 | S64: 0 | T64: 0.0233 | U64: 289.39 | V64: 0.0008 | W64: 9.98 | X64: 0.8857 | Y64: 10991.24 | Z64: 23400.81 | AA64: 1031.32
B65: P8129 | C65: Pedagogo júnior | D65: mês | E65: 2381.06 | F65: 0.8453 | G65: 2012.71 | H65: 0.2952 | I65: 702.89 | J65: 0.0105 | K65: 24.99 | L65: 0 | M65: 0 | N65: 0.032 | O65: 76.17 | P65: 0.004 | Q65: 9.57 | R65: 0 | S65: 0 | T65: 0.1215 | U65: 289.39 | V65: 0.0042 | W65: 9.98 | X65: 1.3127 | Y65: 3125.7 | Z65: 5506.75 | AA65: 1112.98
B66: P8130 | C66: Pedagogo pleno | D66: mês | E66: 3174.74 | F66: 0.8453 | G66: 2683.61 | H66: 0.2214 | I66: 702.89 | J66: 0.0079 | K66: 24.99 | L66: 0 | M66: 0 | N66: 0.009 | O66: 28.55 | P66: 0.003 | Q66: 9.57 | R66: 0 | S66: 0 | T66: 0.0912 | U66: 289.39 | V66: 0.0031 | W66: 9.98 | X66: 1.1809 | Y66: 3748.98 | Z66: 6923.72 | AA66: 1065.37
B67: P8131 | C67: Pedagogo sênior | D67: mês | E67: 4728.95 | F67: 0.8453 | G67: 3997.38 | H67: 0.1486 | I67: 702.89 | J67: 0.0053 | K67: 24.99 | L67: 0 | M67: 0 | N67: 0 | O67: 0 | P67: 0.002 | Q67: 9.57 | R67: 0 | S67: 0 | T67: 0.0612 | U67: 289.39 | V67: 0.0021 | W67: 9.98 | X67: 1.0646 | Y67: 5034.2 | Z67: 9763.15 | AA67: 1036.82
B68: P8135 | C68: Secretária | D68: mês | E68: 2604.78 | F68: 0.7976 | G68: 2077.57 | H68: 0.2698 | I68: 702.89 | J68: 0 | K68: 0 | L68: 0 | M68: 0 | N68: 0.0241 | O68: 62.75 | P68: 0.0014 | Q68: 3.6 | R68: 0 | S68: 0 | T68: 0.1111 | U68: 289.39 | V68: 0.0038 | W68: 9.98 | X68: 1.2079 | Y68: 3146.18 | Z68: 5750.97 | AA68: =Z68-G68-E68 -> 1068.62
B69: P8139 | C69: Sondador | D69: mês | E69: 1989.67 | F69: 0.8001 | G69: 1591.94 | H69: 0.3533 | I69: 702.89 | J69: 0.0141 | K69: 28.01 | L69: 0 | M69: 0 | N69: 0.0501 | O69: 99.65 | P69: 0.0023 | Q69: 4.57 | R69: 0 | S69: 0 | T69: 0.1454 | U69: 289.39 | V69: 0.005 | W69: 9.98 | X69: 1.3703 | Y69: 2726.43 | Z69: 4716.1 | AA69: 1134.49
B70: P8143 | C70: Técnico ambiental | D70: mês | E70: 2831.37 | F70: 0.8071 | G70: 2285.2 | H70: 0.2483 | I70: 702.89 | J70: 0.0099 | K70: 28.01 | L70: 0 | M70: 0 | N70: 0.0174 | O70: 49.15 | P70: 0.0017 | Q70: 4.9 | R70: 0 | S70: 0 | T70: 0.1022 | U70: 289.39 | V70: 0.0035 | W70: 9.98 | X70: 1.1901 | Y70: 3369.53 | Z70: 6200.9 | AA70: 1084.33
B71: P8147 | C71: Técnico de obras | D71: mês | E71: 3167.62 | F71: 0.8021 | G71: 2540.75 | H71: 0.2219 | I71: 702.89 | J71: 0.0088 | K71: 28.01 | L71: 0 | M71: 0 | N71: 0.0091 | O71: 28.97 | P71: 0.0012 | Q71: 3.79 | R71: 0 | S71: 0 | T71: 0.0914 | U71: 289.39 | V71: 0.0032 | W71: 9.98 | X71: 1.1377 | Y71: 3603.79 | Z71: 6771.41 | AA71: 1063.04
B72: P8151 | C72: Técnico de segurança do trabalho | D72: mês | E72: 4457.84 | F72: 0.8095 | G72: 3608.62 | H72: 0.1577 | I72: 702.89 | J72: 0.0063 | K72: 28.01 | L72: 0 | M72: 0 | N72: 0 | O72: 0 | P72: 0.001 | Q72: 4.68 | R72: 0 | S72: 0 | T72: 0.0649 | U72: 289.39 | V72: 0.0022 | W72: 9.98 | X72: 1.0417 | Y72: 4643.57 | Z72: 9101.41 | AA72: 1034.95
B73: P8155 | C73: Técnico em geoprocessamento | D73: mês | E73: 2801.45 | F73: 0.7974 | G73: 2233.88 | H73: 0.2509 | I73: 702.89 | J73: 0.01 | K73: 28.01 | L73: 0 | M73: 0 | N73: 0.0182 | O73: 50.94 | P73: 0.0013 | Q73: 3.73 | R73: 0 | S73: 0 | T73: 0.1033 | U73: 289.39 | V73: 0.0036 | W73: 9.98 | X73: 1.1847 | Y73: 3318.83 | Z73: 6120.29 | AA73: 1084.96
B74: P8159 | C74: Técnico em informática - programador | D74: mês | E74: 4761.5 | F74: 0.8015 | G74: 3816.34 | H74: 0.1476 | I74: 702.89 | J74: 0 | K74: 0 | L74: 0 | M74: 0 | N74: 0 | O74: 0 | P74: 0.0008 | Q74: 3.61 | R74: 0 | S74: 0 | T74: 0.0608 | U74: 289.39 | V74: 0.0021 | W74: 9.98 | X74: 1.0128 | Y74: 4822.22 | Z74: 9583.72 | AA74: 1005.88
B75: P8163 | C75: Topógrafo | D75: mês | E75: 2390.63 | F75: 0.8067 | G75: 1928.52 | H75: 0.294 | I75: 702.89 | J75: 0.0117 | K75: 28.01 | L75: 0 | M75: 0 | N75: 0.0316 | O75: 75.59 | P75: 0.0018 | Q75: 4.39 | R75: 0 | S75: 0 | T75: 0.1211 | U75: 289.39 | V75: 0.0042 | W75: 9.98 | X75: 1.2711 | Y75: 3038.78 | Z75: 5429.4 | AA75: 1110.25
B76: P8167 | C76: Arquivista júnior | D76: mês | E76: 2378.02 | F76: 0.8002 | G76: 1902.89 | H76: 0.2956 | I76: 702.89 | J76: 0 | K76: 0 | L76: 0 | M76: 0 | N76: 0.0321 | O76: 76.35 | P76: 0.0014 | Q76: 3.25 | R76: 0 | S76: 0 | T76: 0.1217 | U76: 289.39 | V76: 0.0042 | W76: 9.98 | X76: 1.2551 | Y76: 2984.76 | Z76: 5362.77 | AA76: 1081.86
B77: P8168 | C77: Arquivista pleno | D77: mês | E77: 3170.69 | F77: 0.8002 | G77: 2537.19 | H77: 0.2217 | I77: 702.89 | J77: 0 | K77: 0 | L77: 0 | M77: 0 | N77: 0.0091 | O77: 28.79 | P77: 0.001 | Q77: 3.25 | R77: 0 | S77: 0 | T77: 0.0913 | U77: 289.39 | V77: 0.0031 | W77: 9.98 | X77: 1.1264 | Y77: 3571.49 | Z77: 6742.18 | AA77: 1034.3
B78: P8169 | C78: Arquivista sênior | D78: mês | E78: 5052.64 | F78: 0.8002 | G78: 4043.13 | H78: 0.1391 | I78: 702.89 | J78: 0 | K78: 0 | L78: 0 | M78: 0 | N78: 0 | O78: 0 | P78: 0.0006 | Q78: 3.25 | R78: 0 | S78: 0 | T78: 0.0573 | U78: 289.39 | V78: 0.002 | W78: 9.98 | X78: 0.9992 | Y78: 5048.64 | Z78: 10101.29 | AA78: 1005.52
B79: P8173 | C79: Administrador júnior | D79: mês | E79: 3268.41 | F79: 0.7979 | G79: 2607.86 | H79: 0.2151 | I79: 702.89 | J79: 0 | K79: 0 | L79: 0 | M79: 0 | N79: 0.007 | O79: 22.93 | P79: 0.0011 | Q79: 3.71 | R79: 0 | S79: 0 | T79: 0.0885 | U79: 289.39 | V79: 0.0031 | W79: 9.98 | X79: 1.1127 | Y79: 3636.77 | Z79: 6905.18 | AA79: 1028.91
B80: P8174 | C80: Administrador pleno | D80: mês | E80: 4357.88 | F80: 0.7979 | G80: 3477.15 | H80: 0.1613 | I80: 702.89 | J80: 0 | K80: 0 | L80: 0 | M80: 0 | N80: 0 | O80: 0 | P80: 0.0009 | Q80: 3.71 | R80: 0 | S80: 0 | T80: 0.0664 | U80: 289.39 | V80: 0.0023 | W80: 9.98 | X80: 1.0287 | Y80: 4483.13 | Z80: 8841.01 | AA80: 1005.98
B81: P8175 | C81: Administrador sênior | D81: mês | E81: 7766 | F81: 0.7979 | G81: 6196.49 | H81: 0.0905 | I81: 702.89 | J81: 0 | K81: 0 | L81: 0 | M81: 0 | N81: 0 | O81: 0 | P81: 0.0005 | Q81: 3.71 | R81: 0 | S81: 0 | T81: 0.0373 | U81: 289.39 | V81: 0.0013 | W81: 9.98 | X81: 0.9274 | Y81: 7202.46 | Z81: 14968.46 | AA81: 1005.97
B82: P8180 | C82: Engenheiro agrimensor júnior | D82: mês | E82: 12002 | F82: 0.7982 | G82: 9580 | H82: 0.0586 | I82: 702.89 | J82: 0.0021 | K82: 24.99 | L82: 0 | M82: 0 | N82: 0 | O82: 0 | P82: 0.0003 | Q82: 4.17 | R82: 0 | S82: 0 | T82: 0.0241 | U82: 289.39 | V82: 0.0008 | W82: 9.98 | X82: 0.8841 | Y82: 10611.41 | Z82: 22613.41 | AA82: 1031.41
B83: P8181 | C83: Engenheiro agrimensor pleno | D83: mês | E83: 13020.37 | F83: 0.7982 | G83: 10392.86 | H83: 0.054 | I83: 702.89 | J83: 0.0019 | K83: 24.99 | L83: 0 | M83: 0 | N83: 0 | O83: 0 | P83: 0.0003 | Q83: 4.17 | R83: 0 | S83: 0 | T83: 0.0222 | U83: 289.39 | V83: 0.0008 | W83: 9.98 | X83: 0.8774 | Y83: 11424.28 | Z83: 24444.65 | AA83: 1031.42
B84: P8182 | C84: Engenheiro agrimensor sênior | D84: mês | E84: 14038.74 | F84: 0.7982 | G84: 11205.72 | H84: 0.0501 | I84: 702.89 | J84: 0.0018 | K84: 24.99 | L84: 0 | M84: 0 | N84: 0 | O84: 0 | P84: 0.0003 | Q84: 4.17 | R84: 0 | S84: 0 | T84: 0.0206 | U84: 289.39 | V84: 0.0007 | W84: 9.98 | X84: 0.8717 | Y84: 12237.14 | Z84: 26275.88 | AA84: 1031.42
B85: P8183 | C85: Geógrafo júnior | D85: mês | E85: 3842.9 | F85: 0.7968 | G85: 3062.02 | H85: 0.1829 | I85: 702.89 | J85: 0.0065 | K85: 24.99 | L85: 0 | M85: 0 | N85: 0 | O85: 0 | P85: 0.0008 | Q85: 3.25 | R85: 0 | S85: 0 | T85: 0.0753 | U85: 289.39 | V85: 0.0026 | W85: 9.98 | X85: 1.065 | Y85: 4092.52 | Z85: 7935.42 | AA85: 1030.5
B86: P8184 | C86: Geógrafo pleno | D86: mês | E86: 5123.87 | F86: 0.7968 | G86: 4082.7 | H86: 0.1372 | I86: 702.89 | J86: 0.0049 | K86: 24.99 | L86: 0 | M86: 0 | N86: 0 | O86: 0 | P86: 0.0006 | Q86: 3.25 | R86: 0 | S86: 0 | T86: 0.0565 | U86: 289.39 | V86: 0.0019 | W86: 9.98 | X86: 0.9979 | Y86: 5113.2 | Z86: 10237.07 | AA86: 1030.5
B87: P8185 | C87: Geógrafo sênior | D87: mês | E87: 9831.81 | F87: 0.7968 | G87: 7833.99 | H87: 0.0715 | I87: 702.89 | J87: 0.0025 | K87: 24.99 | L87: 0 | M87: 0 | N87: 0 | O87: 0 | P87: 0.0003 | Q87: 3.25 | R87: 0 | S87: 0 | T87: 0.0294 | U87: 289.39 | V87: 0.001 | W87: 9.98 | X87: 0.9016 | Y87: 8864.49 | Z87: 18696.3 | AA87: 1030.5
B88: P8186 | C88: Antropólogo júnior | D88: mês | E88: 2946.19 | F88: 0.8168 | G88: 2406.45 | H88: 0.2386 | I88: 702.89 | J88: 0.0085 | K88: 24.99 | L88: 0 | M88: 0 | N88: 0.0143 | O88: 42.26 | P88: 0.0018 | Q88: 5.32 | R88: 0 | S88: 0 | T88: 0.0982 | U88: 289.39 | V88: 0.0034 | W88: 9.98 | X88: 1.1816 | Y88: 3481.28 | Z88: 6427.47 | AA88: 1074.83
B89: P8187 | C89: Antropólogo pleno | D89: mês | E89: 3928.26 | F89: 0.8168 | G89: 3208.6 | H89: 0.1789 | I89: 702.89 | J89: 0.0064 | K89: 24.99 | L89: 0 | M89: 0 | N89: 0 | O89: 0 | P89: 0.0014 | Q89: 5.32 | R89: 0 | S89: 0 | T89: 0.0737 | U89: 289.39 | V89: 0.0025 | W89: 9.98 | X89: 1.0797 | Y89: 4241.17 | Z89: 8169.43 | AA89: 1032.57
B90: P8188 | C90: Antropólogo sênior | D90: mês | E90: 5873.81 | F90: 0.8168 | G90: 4797.73 | H90: 0.1197 | I90: 702.89 | J90: 0.0043 | K90: 24.99 | L90: 0 | M90: 0 | N90: 0 | O90: 0 | P90: 0.0009 | Q90: 5.32 | R90: 0 | S90: 0 | T90: 0.0493 | U90: 289.39 | V90: 0.0017 | W90: 9.98 | X90: 0.9926 | Y90: 5830.3 | Z90: 11704.11 | AA90: 1032.57
B91: P8189 | C91: Arqueólogo júnior | D91: mês | E91: 2738.44 | F91: 0.7987 | G91: 2187.19 | H91: 0.2567 | I91: 702.89 | J91: 0.0091 | K91: 24.99 | L91: 0 | M91: 0 | N91: 0.02 | O91: 54.73 | P91: 0.0014 | Q91: 3.74 | R91: 0 | S91: 0 | T91: 0.1057 | U91: 289.39 | V91: 0.0036 | W91: 9.98 | X91: 1.1952 | Y91: 3272.9 | Z91: 6011.34 | AA91: 1085.71
B92: P8190 | C92: Arqueólogo pleno | D92: mês | E92: 3651.25 | F92: 0.7987 | G92: 2916.26 | H92: 0.1925 | I92: 702.89 | J92: 0.0068 | K92: 24.99 | L92: 0 | M92: 0 | N92: 0 | O92: 0 | P92: 0.001 | Q92: 3.74 | R92: 0 | S92: 0 | T92: 0.0793 | U92: 289.39 | V92: 0.0027 | W92: 9.98 | X92: 1.0811 | Y92: 3947.24 | Z92: 7598.5 | AA92: 1030.99
B93: P8191 | C93: Arqueólogo sênior | D93: mês | E93: 5503.01 | F93: 0.7987 | G93: 4395.25 | H93: 0.1277 | I93: 702.89 | J93: 0.0045 | K93: 24.99 | L93: 0 | M93: 0 | N93: 0 | O93: 0 | P93: 0.0007 | Q93: 3.74 | R93: 0 | S93: 0 | T93: 0.0526 | U93: 289.39 | V93: 0.0018 | W93: 9.98 | X93: 0.9861 | Y93: 5426.24 | Z93: 10929.24 | AA93: 1030.98
B94: P8192 | C94: Historiador júnior | D94: mês | E94: 3935.94 | F94: 0.8033 | G94: 3161.74 | H94: 0.1786 | I94: 702.89 | J94: 0.0063 | K94: 24.99 | L94: 0 | M94: 0 | N94: 0 | O94: 0 | P94: 0.0009 | Q94: 3.7 | R94: 0 | S94: 0 | T94: 0.0735 | U94: 289.39 | V94: 0.0025 | W94: 9.98 | X94: 1.0652 | Y94: 4192.69 | Z94: 8128.63 | AA94: 1030.95
B95: P8193 | C95: Historiador pleno | D95: mês | E95: 5247.92 | F95: 0.8033 | G95: 4215.66 | H95: 0.1339 | I95: 702.89 | J95: 0.0048 | K95: 24.99 | L95: 0 | M95: 0 | N95: 0 | O95: 0 | P95: 0.0007 | Q95: 3.7 | R95: 0 | S95: 0 | T95: 0.0551 | U95: 289.39 | V95: 0.0019 | W95: 9.98 | X95: 0.9997 | Y95: 5246.6 | Z95: 10494.53 | AA95: 1030.95
B96: P8194 | C96: Historiador sênior | D96: mês | E96: 8467.8 | F96: 0.8033 | G96: 6802.19 | H96: 0.083 | I96: 702.89 | J96: 0.003 | K96: 24.99 | L96: 0 | M96: 0 | N96: 0 | O96: 0 | P96: 0.0004 | Q96: 3.7 | R96: 0 | S96: 0 | T96: 0.0342 | U96: 289.39 | V96: 0.0012 | W96: 9.98 | X96: 0.925 | Y96: 7833.13 | Z96: 16300.93 | AA96: 1030.94
B97: P8195 | C97: Paleontólogo júnior | D97: mês | E97: 2946.19 | F97: 0.8168 | G97: 2406.45 | H97: 0.2386 | I97: 702.89 | J97: 0.0085 | K97: 24.99 | L97: 0 | M97: 0 | N97: 0.0143 | O97: 42.26 | P97: 0.0018 | Q97: 5.32 | R97: 0 | S97: 0 | T97: 0.0982 | U97: 289.39 | V97: 0.0034 | W97: 9.98 | X97: 1.1816 | Y97: 3481.28 | Z97: 6427.47 | AA97: 1074.83
B98: P8196 | C98: Paleontólogo pleno | D98: mês | E98: 3928.26 | F98: 0.8168 | G98: 3208.6 | H98: 0.1789 | I98: 702.89 | J98: 0.0064 | K98: 24.99 | L98: 0 | M98: 0 | N98: 0 | O98: 0 | P98: 0.0014 | Q98: 5.32 | R98: 0 | S98: 0 | T98: 0.0737 | U98: 289.39 | V98: 0.0025 | W98: 9.98 | X98: 1.0797 | Y98: 4241.17 | Z98: 8169.43 | AA98: 1032.57
B99: P8197 | C99: Paleontólogo sênior | D99: mês | E99: 5873.81 | F99: 0.8168 | G99: 4797.73 | H99: 0.1197 | I99: 702.89 | J99: 0.0043 | K99: 24.99 | L99: 0 | M99: 0 | N99: 0 | O99: 0 | P99: 0.0009 | Q99: 5.32 | R99: 0 | S99: 0 | T99: 0.0493 | U99: 289.39 | V99: 0.0017 | W99: 9.98 | X99: 0.9926 | Y99: 5830.3 | Z99: 11704.11 | AA99: 1032.57
B100: P8198 | C100: Sociólogo júnior | D100: mês | E100: 4060.7 | F100: 0.8033 | G100: 3261.96 | H100: 0.1731 | I100: 702.89 | J100: 0.0062 | K100: 24.99 | L100: 0 | M100: 0 | N100: 0 | O100: 0 | P100: 0.0009 | Q100: 3.7 | R100: 0 | S100: 0 | T100: 0.0713 | U100: 289.39 | V100: 0.0025 | W100: 9.98 | X100: 1.0572 | Y100: 4292.91 | Z100: 8353.6 | AA100: =Z100-G100-E100 -> 1030.94
B101: P8199 | C101: Sociólogo pleno | D101: mês | E101: 5414.26 | F101: 0.8033 | G101: 4349.28 | H101: 0.1298 | I101: 702.89 | J101: 0.0046 | K101: 24.99 | L101: 0 | M101: 0 | N101: 0 | O101: 0 | P101: 0.0007 | Q101: 3.7 | R101: 0 | S101: 0 | T101: 0.0534 | U101: 289.39 | V101: 0.0018 | W101: 9.98 | X101: 0.9937 | Y101: 5380.23 | Z101: 10794.49 | AA101: 1030.95
B102: P8200 | C102: Sociólogo sênior | D102: mês | E102: 8587.73 | F102: 0.8033 | G102: 6898.53 | H102: 0.0818 | I102: 702.89 | J102: 0.0029 | K102: 24.99 | L102: 0 | M102: 0 | N102: 0 | O102: 0 | P102: 0.0004 | Q102: 3.7 | R102: 0 | S102: 0 | T102: 0.0337 | U102: 289.39 | V102: 0.0012 | W102: 9.98 | X102: 0.9233 | Y102: 7929.47 | Z102: 16517.21 | AA102: 1030.95
B103: Profissionais horistas
B104: P8250 | C104: Auxiliar - horista | D104: h | E104: 7.07 | F104: 1.1323 | G104: 8 | H104: 0.5452 | I104: 3.85 | J104: 0.0236 | K104: 0.17 | L104: 0.0012 | M104: 0.01 | N104: 0.0975 | O104: 0.69 | P104: 0.0048 | Q104: 0.03 | R104: 0 | S104: 0 | T104: 0.2244 | U104: 1.59 | V104: 0.0077 | W104: 0.05 | X104: 2.0368 | Y104: 14.39 | Z104: 21.46
B105: P8251 | C105: Auxiliar de laboratório - horista | D105: h | E105: 7.82 | F105: 1.1317 | G105: 8.85 | H105: 0.4923 | I105: 3.85 | J105: 0.0213 | K105: 0.17 | L105: 0.0023 | M105: 0.02 | N105: 0.0811 | O105: 0.63 | P105: 0.0028 | Q105: 0.02 | R105: 0 | S105: 0 | T105: 0.2027 | U105: 1.59 | V105: 0.007 | W105: 0.05 | X105: 1.9411 | Y105: 15.19 | Z105: 23.01
B106: P8255 | C106: Engenheiro de projetos júnior - horista | D106: h | E106: 54.55 | F106: 1.1314 | G106: 61.72 | H106: 0.0706 | I106: 3.85 | J106: 0.0025 | K106: 0.14 | L106: 0 | M106: 0 | N106: 0 | O106: 0 | P106: 0.0004 | Q106: 0.02 | R106: 0 | S106: 0 | T106: 0.0291 | U106: 1.59 | V106: 0.001 | W106: 0.05 | X106: 1.235 | Y106: 67.37 | Z106: 121.93
B107: P8256 | C107: Engenheiro de projetos pleno - horista | D107: h | E107: 56.27 | F107: 1.1314 | G107: 63.67 | H107: 0.0684 | I107: 3.85 | J107: 0.0024 | K107: 0.14 | L107: 0 | M107: 0 | N107: 0 | O107: 0 | P107: 0.0004 | Q107: 0.02 | R107: 0 | S107: 0 | T107: 0.0282 | U107: 1.59 | V107: 0.001 | W107: 0.05 | X107: 1.2318 | Y107: 69.32 | Z107: 125.59
B108: P8260 | C108: Laboratorista - horista | D108: h | E108: 10.43 | F108: 1.1317 | G108: 11.81 | H108: 0.3692 | I108: 3.85 | J108: 0.0147 | K108: 0.15 | L108: 0 | M108: 0 | N108: 0.0427 | O108: 0.45 | P108: 0.0021 | Q108: 0.02 | R108: 0 | S108: 0 | T108: 0.152 | U108: 1.59 | V108: 0.0052 | W108: 0.05 | X108: 1.7177 | Y108: 17.92 | Z108: 28.35
B109: P8263 | C109: Motorista de caminhão - horista | D109: h | E109: 10.39 | F109: 1.1326 | G109: 11.77 | H109: 0.3707 | I109: 3.85 | J109: 0.016 | K109: 0.17 | L109: 0 | M109: 0 | N109: 0.0432 | O109: 0.45 | P109: 0.0023 | Q109: 0.02 | R109: 0 | S109: 0 | T109: 0.1526 | U109: 1.59 | V109: 0.0053 | W109: 0.05 | X109: 1.7227 | Y109: 17.9 | Z109: 28.29
B110: P8264 | C110: Motorista de veículo leve - horista | D110: h | E110: 9.2 | F110: 1.1318 | G110: 10.42 | H110: 0.4185 | I110: 3.85 | J110: 0.0181 | K110: 0.17 | L110: 0 | M110: 0 | N110: 0.0581 | O110: 0.53 | P110: 0.0023 | Q110: 0.02 | R110: 0 | S110: 0 | T110: 0.1723 | U110: 1.59 | V110: 0.0059 | W110: 0.05 | X110: 1.8071 | Y110: 16.63 | Z110: 25.83
B111: P8267 | C111: Sondador - horista | D111: h | E111: 9.04 | F111: 1.1316 | G111: 10.23 | H111: 0.4259 | I111: 3.85 | J111: 0.017 | K111: 0.15 | L111: 0 | M111: 0 | N111: 0.0604 | O111: 0.55 | P111: 0.0028 | Q111: 0.03 | R111: 0 | S111: 0 | T111: 0.1753 | U111: 1.59 | V111: 0.006 | W111: 0.05 | X111: 1.819 | Y111: 16.45 | Z111: 25.49
B112: P8270 | C112: Técnico de obras - horista | D112: h | E112: 14.4 | F112: 1.1312 | G112: 16.29 | H112: 0.2675 | I112: 3.85 | J112: 0.0107 | K112: 0.15 | L112: 0 | M112: 0 | N112: 0.011 | O112: 0.16 | P112: 0.0014 | Q112: 0.02 | R112: 0 | S112: 0 | T112: 0.1101 | U112: 1.59 | V112: 0.0038 | W112: 0.05 | X112: 1.5358 | Y112: 22.11 | Z112: 36.51
